bitfinex/quotes_ETHUSD_20250603
["timestamp","ask_amount","ask_price","bid_price","bid_amount"]
[1748912425654,4.62848965,2623.5,2623.0,0.35541202]
[1748912425860,3.81185712,2623.4,2623.1,0.35403977]
[1748912426060,3.81185712,2623.4,2622.9,4.24517879]
[1748912426262,4.62845566,2623.5,2623.0,3.8124245]
[1748912426457,4.62845566,2623.5,2623.0,4.61820537]
[1748912426665,4.62845566,2623.5,2623.0,0.80578087]
[1748912426911,4.62845566,2623.5,2622.9,3.81252438]
[1748912427264,4.62845566,2623.5,2623.0,3.8124035]
[1748912427762,4.62845566,2623.5,2622.9,3.8125216]
[1748912428497,0.81674922,2623.5,2623.0,0.35397944]
[1748912428697,4.58085739,2623.5,2622.9,3.81249468]
[1748912428860,4.58085739,2623.5,2623.1,0.35397005]
[1748912429274,3.81211099,2623.3,2623.1,0.35397005]
[1748912429495,4.62098753,2623.2,2623.1,0.35397005]
[1748912429902,13.17098753,2623.2,2623.1,0.35397005]
[1748912430072,13.1263646,2622.7,2622.6,0.35583312]
[1748912430271,3.81417867,2621.8,2621.2,3.81498922]
[1748912430475,0.81116711,2621.7,2621.1,0.02]
[1748912430716,4.24932136,2621.7,2621.1,4.02]
[1748912430916,4.57825594,2621.4,2621.1,0.02]
[1748912431075,3.81504654,2621.2,2621.1,0.02]
[1748912431273,0.04766711,2621.3,2621.1,0.02]
[1748912432216,0.7635,2621.8,2621.1,3.50582136]
[1748912432521,3.86211114,2621.7,2621.1,0.02]
[1748912432810,3.81446444,2621.6,2621.1,0.02]
[1748912433432,3.86202463,2621.7,2621.1,0.02]
[1748912433710,0.04766711,2621.7,2621.1,3.83513351]
[1748912433884,3.86200078,2621.7,2621.1,3.83513351]
[1748912434616,1.28271711,2621.8,2621.1,0.05814684]
[1748912434822,1.28271711,2621.8,2621.1,0.02]
[1748912435023,3.81441179,2621.7,2621.1,3.83516711]
[1748912435243,0.04766711,2621.7,2621.1,3.83514346]
[1748912435424,1.28271711,2621.8,2621.1,0.02]
[1748912435719,5.09689185,2621.8,2621.2,3.81495599]
[1748912435893,5.09689185,2621.8,2621.1,3.83514361]
[1748912436095,3.81433802,2621.7,2621.1,3.83514361]
[1748912436393,0.04766711,2621.6,2621.1,3.83514361]
[1748912436833,0.04766711,2621.6,2621.1,0.02]
[1748912437001,3.81461505,2621.5,2621.1,0.02]
[1748912437329,4.37190645,2621.6,2621.1,0.02]
[1748912438136,0.55738018,2621.6,2621.1,3.83517493]
[1748912438327,0.04766711,2621.6,2621.2,3.81502327]
[1748912438528,0.04766711,2621.7,2621.2,3.81502327]
[1748912438724,3.86198812,2621.7,2621.1,3.83515055]
[1748912439438,3.81446683,2621.6,2621.1,0.02]
[1748912440301,0.04766711,2621.7,2621.1,0.02]
[1748912440501,0.04766711,2621.7,2621.1,3.83516111]
[1748912440735,0.04766711,2621.7,2621.3,3.81488972]
[1748912440943,0.95265002,2621.7,2621.1,0.02]
[1748912441106,0.90498291,2621.7,2621.1,3.87320839]
[1748912441311,4.71931274,2621.7,2621.1,3.87320839]
[1748912441536,4.71931274,2621.7,2620.9,7.30127167]
[1748912441742,4.76699623,2621.7,2620.9,7.30127167]
[1748912442104,3.81451242,2621.6,2620.9,7.30127167]
[1748912442304,4.76708743,2621.7,2621.1,3.81510558]
[1748912442537,0.9526664,2621.7,2621.1,3.81505702]
[1748912442829,4.76699939,2621.7,2621.1,3.81505702]
[1748912443245,0.9526664,2621.7,2621.2,3.81491666]
[1748912443446,4.57776723,2621.8,2621.2,3.81491856]
[1748912443739,4.5678567,2621.6,2620.9,3.81536198]
[1748912444044,0.7533,2621.6,2621.1,3.81514397]
[1748912444547,0.7533,2621.6,2621.2,3.81500481]
[1748912444753,0.7533,2621.6,2621.2,3.82455498]
[1748912445048,0.7533,2621.6,2620.9,7.30116255]
[1748912445210,4.56776871,2621.6,2621.1,3.81517802]
[1748912445409,0.7533,2621.6,2621.1,3.81517802]
[1748912446869,0.7533,2621.6,2620.7,0.735]
[1748912447007,0.7952,2621.1,2620.5,0.735]
[1748912447213,0.7952,2621.1,2620.6,3.8158251]
[1748912448147,0.7952,2621.1,2620.7,3.81573176]
[1748912449162,0.7952,2621.1,2620.8,0.00956692]
[1748912450645,0.7952,2621.1,2620.8,3.81559708]
[1748912450857,0.8093,2621.4,2621.0,3.81533765]
[1748912451081,0.8093,2621.4,2620.8,3.48582136]
[1748912451237,0.8093,2621.4,2620.9,4.16403067]
[1748912451559,4.62408011,2621.4,2620.9,4.16403067]
[1748912451755,4.62408011,2621.4,2620.8,3.81556571]
[1748912451959,0.8093,2621.4,2620.8,3.81556571]
[1748912452133,4.62407656,2621.4,2620.8,3.81554477]
[1748912452338,4.67176296,2621.4,2620.8,3.81554477]
[1748912452752,0.8093,2621.4,2620.9,3.81536607]
[1748912452942,0.8093,2621.4,2620.9,3.81538697]
[1748912453258,0.0476864,2621.6,2621.0,0.00955889]
[1748912453460,3.81463554,2621.5,2621.0,4.55023145]
[1748912453664,4.59093263,2621.6,2620.8,4.22082136]
[1748912453838,4.63861575,2621.6,2621.0,3.81532979]
[1748912454460,3.81464098,2621.5,2620.9,3.8154303]
[1748912456259,3.81476999,2621.4,2620.9,3.81541154]
[1748912456564,3.81475665,2621.4,2620.9,3.81541154]
[1748912457278,4.59087042,2621.6,2620.6,4.22082136]
[1748912457279,0.7764,2621.6,2620.6,4.22082136]
[1748912457460,0.7945,2621.3,2620.8,3.8155505]
[1748912457972,3.81520306,2621.1,2620.6,3.81584318]
[1748912458184,0.7945,2621.1,2620.6,3.81584318]
[1748912458470,0.7945,2621.1,2620.7,3.81575088]
[1748912459029,0.7945,2621.1,2620.6,3.81589038]
[1748912459579,4.609706,2621.1,2620.3,11.48582136]
[1748912459885,0.7945,2621.1,2620.3,11.48582136]
[1748912460050,4.60974558,2621.1,2620.5,3.81597312]
[1748912460429,4.60974558,2621.1,2620.7,3.81572688]
[1748912460430,0.7945,2621.1,2620.7,3.81572688]
[1748912460785,0.7945,2621.1,2620.5,7.30185734]
[1748912460983,3.81535189,2621.0,2620.5,7.30185734]
[1748912461131,4.65745331,2621.1,2620.5,7.30185734]
[1748912461467,4.65745331,2621.1,2620.5,3.48582136]
[1748912461665,4.65745331,2621.1,2620.3,3.48582136]
[1748912461666,1.68942943,2621.1,2620.3,3.48582136]
[1748912461838,0.7849,2620.5,2620.1,0.02]
[1748912462045,0.7849,2620.5,2620.1,4.02]
[1748912462046,4.60107132,2620.5,2620.1,4.02]
[1748912462365,0.7849,2620.5,2620.1,0.02]
[1748912462529,0.7849,2620.5,2620.2,3.81648603]
[1748912462733,0.7849,2620.5,2620.1,0.02958917]
[1748912463144,0.7849,2620.5,2620.2,3.81649321]
[1748912463355,3.81527446,2621.1,2620.3,7.31162651]
[1748912463701,3.952,2621.0,2620.5,3.81604661]
[1748912463833,5.67364475,2621.2,2620.5,3.81604661]
[1748912463834,4.7655,2621.2,2620.7,3.81569589]
[1748912464035,0.8135,2621.2,2620.7,3.81569589]
[1748912464238,0.8135,2621.2,2620.8,3.8155881]
[1748912465316,0.8135,2621.2,2620.7,3.81570879]
[1748912465973,4.62855117,2621.2,2620.7,3.81570879]
[1748912466178,0.8135,2621.2,2620.7,3.81570879]
[1748912466804,0.8135,2621.2,2620.8,3.81562664]
[1748912467439,0.8135,2621.2,2620.6,3.82546994]
[1748912467440,0.8135,2621.2,2620.9,3.81548067]
[1748912467837,0.8135,2621.2,2620.6,0.00956735]
[1748912467838,0.8135,2621.2,2620.8,3.81556654]
[1748912468040,0.8135,2621.2,2620.6,3.82544697]
[1748912468350,4.63013853,2621.0,2620.5,3.81597314]
[1748912468548,0.8148,2621.0,2620.5,3.81597314]
[1748912468774,0.8148,2621.0,2620.3,7.30215724]
[1748912468775,3.81555373,2620.9,2620.3,7.30215724]
[1748912468977,0.7748,2620.7,2620.2,3.8164813]
[1748912469182,0.7748,2620.7,2620.4,3.81620018]
[1748912470239,0.7748,2620.7,2620.2,8.0]
[1748912470441,0.7748,2620.7,2620.4,3.81618299]
[1748912470641,0.7748,2620.7,2620.2,11.48582136]
[1748912470973,0.7748,2620.7,2620.5,3.81605571]
[1748912471685,0.7748,2620.7,2620.4,3.81618106]
[1748912472684,0.7748,2620.7,2620.2,15.30222273]
[1748912472839,0.8125,2620.5,2620.1,0.02]
[1748912473040,0.04770148,2620.4,2620.1,0.02]
[1748912474113,0.7736,2620.3,2620.1,0.02]
[1748912474387,4.59000845,2620.3,2620.1,0.02]
[1748912474548,0.04770872,2620.2,2620.1,0.02]
[1748912474747,0.51148044,2620.2,2620.1,0.02]
[1748912474975,5.10158299,2620.2,2620.1,0.02]
[1748912475390,1.28508044,2620.2,2620.1,0.02]
[1748912475600,4.7246,2620.2,2620.1,0.02]
[1748912475741,4.77231104,2620.2,2620.1,0.02]
[1748912476041,0.7736,2620.2,2620.1,0.02]
[1748912476240,4.7246,2620.2,2620.1,0.02]
[1748912476790,8.5888136,2620.2,2620.1,0.02]
[1748912477080,9.8860075,2620.2,2620.1,0.02]
[1748912477978,6.06950495,2620.2,2620.1,0.02]
[1748912478366,9.8860075,2620.2,2620.1,0.02]
[1748912479539,6.06950495,2620.2,2620.1,0.02]
[1748912479691,6.117216,2620.2,2620.1,0.02]
[1748912479891,9.93371855,2620.2,2620.1,0.02]
[1748912480100,6.06950495,2620.2,2620.1,0.02]
[1748912480401,6.11721601,2620.2,2620.1,0.02]
[1748912481005,9.93371856,2620.2,2620.1,0.02]
[1748912481199,9.8860075,2620.2,2620.1,0.02]
[1748912481503,6.06950495,2620.2,2620.1,0.02]
[1748912481705,6.11721601,2620.2,2620.1,0.02]
[1748912482600,9.93371856,2620.2,2620.1,0.02]
[1748912482955,9.8860075,2620.2,2620.1,0.02]
[1748912483962,10.4360075,2620.2,2620.1,0.02]
[1748912484413,5.9350075,2620.2,2620.1,0.02]
[1748912484616,3.81636773,2620.3,2620.1,0.02]
[1748912484617,1.044,2620.3,2620.1,0.02]
[1748912484817,4.995,2620.3,2620.1,0.02]
[1748912485863,4.994,2620.3,2620.1,0.02]
[1748912486217,5.04170671,2620.3,2620.1,0.02]
[1748912486660,4.64460255,2620.2,2620.1,0.02]
[1748912486844,5.99486988,2620.2,2620.1,0.02]
[1748912487025,6.04258606,2620.2,2620.1,0.02]
[1748912489459,14.59258606,2620.2,2620.1,0.02]
[1748912489648,14.54486988,2620.2,2620.1,0.02]
[1748912490426,4.64605968,2619.2,2619.1,0.02]
[1748912490625,9.06066565,2619.2,2619.1,0.02]
[1748912492132,9.61066565,2619.2,2619.1,0.02]
[1748912492435,10.10466565,2619.2,2619.1,0.02]
[1748912492635,0.8281,2619.2,2619.1,0.02]
[1748912492873,1.044,2619.4,2619.1,3.83804691]
[1748912493028,1.044,2619.4,2619.1,0.02]
[1748912493864,4.86169077,2619.4,2619.1,0.02]
[1748912494567,1.044,2619.4,2619.1,0.02]
[1748912495163,1.09172472,2619.4,2619.1,0.02]
[1748912495458,2.43713306,2619.4,2619.1,0.02]
[1748912495627,1.09172472,2619.4,2619.1,0.02]
[1748912496558,4.90943276,2619.4,2619.1,0.02]
[1748912497332,4.90943445,2619.4,2619.1,0.02]
[1748912497766,1.09172472,2619.4,2619.1,0.02]
[1748912497947,4.90941023,2619.4,2619.1,0.02]
[1748912498153,3.81784302,2619.3,2619.1,0.02]
[1748912498467,4.66998442,2619.2,2619.1,0.02]
[1748912500682,0.8149,2619.5,2619.1,0.02]
[1748912501033,3.81724405,2619.7,2619.2,0.755]
[1748912501232,3.81738938,2619.6,2619.2,0.755]
[1748912501686,3.99772072,2619.7,2619.2,0.755]
[1748912501874,3.81740733,2619.6,2619.2,0.755]
[1748912502238,3.86500644,2619.7,2619.2,0.755]
[1748912502430,3.86507101,2619.7,2619.2,1.21429969]
[1748912503268,3.81740988,2619.6,2619.2,1.21429969]
[1748912503459,0.04772073,2619.7,2619.2,1.21429969]
[1748912503665,3.81660062,2620.2,2619.4,4.57266816]
[1748912503862,1.8718,2620.7,2619.6,6.52824986]
[1748912504062,1.8718,2620.7,2620.2,3.81640417]
[1748912504264,1.8718,2620.7,2620.0,3.81668275]
[1748912504265,1.91950159,2620.7,2620.0,3.81673429]
[1748912504569,1.09170159,2620.7,2620.2,3.81641981]
[1748912504774,3.86334568,2620.8,2620.2,4.57141981]
[1748912505071,0.04770161,2620.9,2620.2,4.57148907]
[1748912505252,3.86320448,2620.9,2620.3,4.28308608]
[1748912505451,3.86320448,2620.9,2620.3,4.27350581]
[1748912505655,1.042,2621.2,2620.6,3.81581722]
[1748912505851,1.042,2621.2,2620.7,3.82529547]
[1748912506063,1.042,2621.2,2620.5,0.755]
[1748912506271,4.85714248,2621.2,2620.6,3.81588384]
[1748912506470,4.85714248,2621.2,2620.5,4.57095175]
[1748912506779,0.7638,2621.7,2620.6,8.0]
[1748912506953,7.76347703,2621.6,2621.1,0.755]
[1748912507281,0.04768604,2621.5,2621.1,0.755]
[1748912508080,7.8114232,2621.5,2621.1,0.755]
[1748912508265,3.99668604,2621.5,2621.1,4.57018868]
[1748912508467,7.81131826,2621.5,2621.1,0.755]
[1748912508778,7.76323234,2621.8,2621.2,3.81503245]
[1748912508984,7.76323234,2621.8,2621.1,5.02721066]
[1748912508985,3.99668045,2621.8,2621.1,5.02721066]
[1748912509282,3.949,2621.7,2621.2,3.81504654]
[1748912509657,3.949,2621.7,2621.1,5.02718504]
[1748912509883,7.80985961,2621.8,2621.2,3.81502081]
[1748912510046,3.8144158,2621.7,2621.1,5.0271785]
[1748912510247,3.8144158,2621.7,2621.2,0.43619332]
[1748912510695,12.07713326,2621.9,2621.2,0.43619332]
[1748912510696,0.02,2621.9,2621.3,0.00954704]
[1748912511011,0.02,2621.9,2621.8,4.56917346]
[1748912511513,0.02,2621.9,2621.8,0.755]
[1748912512216,0.02,2621.9,2621.5,4.5695502]
[1748912512419,0.02,2621.9,2621.6,3.81444958]
[1748912513048,0.02,2621.9,2621.5,5.0266219]
[1748912513162,0.02,2621.9,2621.6,3.81443874]
[1748912513600,0.02,2621.9,2621.5,1.21204601]
[1748912513800,0.02,2621.9,2621.5,0.755]
[1748912514003,0.02,2621.9,2621.6,3.82398844]
[1748912514366,0.02,2621.9,2621.8,3.81417346]
[1748912514567,0.02,2621.9,2621.8,3.82369751]
[1748912514880,0.02,2621.9,2621.7,3.81427467]
[1748912515085,0.02,2621.9,2621.8,0.38142747]
[1748912515609,0.02,2621.9,2621.5,0.755]
[1748912515800,0.02,2621.9,2621.8,3.81417346]
[1748912516303,0.02,2621.9,2621.8,4.56917346]
[1748912516710,0.02,2621.9,2621.8,0.755]
[1748912516901,0.02,2621.9,2621.8,4.56917346]
[1748912517410,0.02,2621.9,2621.5,0.755]
[1748912517565,3.83414472,2621.9,2621.2,3.81494493]
[1748912517764,3.83414472,2621.9,2621.3,7.81489233]
[1748912517999,0.04767829,2621.8,2621.3,4.0]
[1748912518175,0.49237374,2621.8,2621.0,4.57028931]
[1748912518375,3.81449387,2621.6,2621.0,4.57028931]
[1748912518793,0.06768284,2621.9,2621.4,3.81466347]
[1748912518988,0.06768284,2621.9,2621.0,0.755]
[1748912518989,7.78004429,2621.9,2621.3,3.8148375]
[1748912519868,7.78004429,2621.9,2621.0,8.755]
[1748912519869,0.7898,2621.7,2621.0,8.755]
[1748912520082,3.81460995,2621.5,2620.9,3.81545388]
[1748912520269,3.814901,2621.3,2620.6,0.755]
[1748912520496,0.7898,2621.7,2620.7,0.00956538]
[1748912520706,0.06768226,2621.9,2620.9,0.755]
[1748912520906,3.83405115,2621.9,2621.3,3.81478032]
[1748912521219,0.04767814,2621.8,2620.9,0.755]
[1748912521419,0.04767814,2621.8,2621.0,3.81528416]
[1748912521420,0.76,2621.5,2621.0,3.81528416]
[1748912521631,0.7527,2621.8,2620.9,0.755]
[1748912521794,3.966,2621.9,2621.3,3.8148147]
[1748912521992,7.78011192,2621.9,2621.3,3.8148147]
[1748912522200,3.966,2621.9,2621.4,3.82429592]
[1748912522512,0.02,2621.9,2621.7,3.81431895]
[1748912522696,0.02,2621.9,2621.8,3.82370469]
[1748912522882,0.02,2621.9,2621.8,3.81417346]
[1748912524583,0.02,2621.9,2621.8,4.21143628]
[1748912524919,0.02,2621.9,2621.8,4.20191899]
[1748912525683,0.02,2621.9,2621.8,4.95691899]
[1748912527224,0.02,2621.9,2621.8,4.56917346]
[1748912527633,0.02,2621.9,2621.8,12.56917346]
[1748912527848,0.02,2621.9,2621.8,13.49879966]
[1748912529104,0.02,2621.9,2621.8,16.89379966]
[1748912530630,0.02,2621.9,2621.8,13.49879966]
[1748912530790,0.02,2622.9,2622.8,3.81271923]
[1748912530985,0.02,2622.9,2622.8,4.56771923]
[1748912532185,0.02,2622.9,2622.5,0.755]
[1748912532391,0.02,2622.9,2622.8,12.56771923]
[1748912532624,0.02,2622.9,2622.8,13.11771923]
[1748912533317,0.02,2622.9,2622.8,12.56771923]
[1748912533521,0.02,2622.9,2622.8,16.56771923]
[1748912534190,0.02,2622.9,2622.8,7.81271923]
[1748912534392,0.02,2622.9,2622.8,7.82220342]
[1748912534828,0.02,2622.9,2622.8,7.81271923]
[1748912535033,0.02,2622.9,2622.8,15.8221944]
[1748912535237,0.02,2622.9,2622.8,15.81271923]
[1748912535819,0.02,2622.9,2622.8,16.56771923]
[1748912536323,0.02,2622.9,2622.8,12.56771923]
[1748912537156,1.817,2623.8,2623.4,3.81172722]
[1748912537465,1.817,2623.8,2623.5,3.81166721]
[1748912537625,1.817,2623.8,2623.3,3.81195107]
[1748912537626,1.0,2623.8,2623.6,0.00946669]
[1748912537822,1.0,2623.8,2623.4,3.8117709]
[1748912538065,1.0,2623.8,2623.6,3.81153091]
[1748912538725,1.0,2623.8,2623.3,12.56695729]
[1748912538930,1.0,2623.8,2623.6,3.81155631]
[1748912539486,1.0,2623.8,2623.6,3.81153688]
[1748912539772,1.0,2623.8,2623.4,3.81184722]
[1748912539989,1.0,2623.8,2623.3,8.755]
[1748912539990,1.0,2623.8,2623.3,4.56694784]
[1748912540156,4.58962241,2623.7,2623.1,3.81219267]
[1748912540557,3.81158522,2623.6,2623.0,11.81236747]
[1748912540874,3.81186647,2623.4,2622.8,3.81262379]
[1748912541027,0.783,2623.3,2622.8,4.65067577]
[1748912541227,0.783,2623.3,2622.9,3.81252551]
[1748912541465,0.783,2623.3,2622.8,3.81271879]
[1748912541770,0.783,2623.3,2622.9,3.8125642]
[1748912541972,0.783,2623.3,2622.8,3.81268573]
[1748912542142,0.783,2623.3,2622.8,4.30670522]
[1748912542329,0.783,2623.3,2622.9,3.81255261]
[1748912542557,8.53803764,2623.3,2622.5,3.81306]
[1748912542755,8.53803764,2623.3,2622.5,3.82259911]
[1748912542756,3.81239359,2623.1,2622.5,3.82259911]
[1748912542957,3.81239359,2623.1,2622.5,3.81310601]
[1748912543183,4.726,2623.3,2622.6,3.81300005]
[1748912543333,3.81229183,2623.1,2622.7,0.00949748]
[1748912544064,3.81236429,2623.1,2622.7,0.0094975]
[1748912544428,3.81218573,2623.2,2622.7,0.0094975]
[1748912545030,0.04765574,2623.1,2622.2,0.38313709]
[1748912545366,3.81274881,2622.8,2622.2,3.81350888]
[1748912545530,3.8126367,2622.9,2622.3,3.82291582]
[1748912547369,0.80346122,2623.0,2622.3,0.00950852]
[1748912547568,3.81289071,2622.7,2622.0,3.81385264]
[1748912547773,3.81289071,2622.7,2622.1,3.81373708]
[1748912548064,3.81273452,2622.8,2622.2,3.81356828]
[1748912548277,4.56826189,2623.0,2622.3,0.00950943]
[1748912548483,3.81260045,2622.9,2622.3,3.81331123]
[1748912548784,3.81260045,2622.9,2622.3,3.8228207]
[1748912549287,0.7558,2623.0,2622.9,3.81257386]
[1748912549470,0.8032,2623.3,2622.5,8.00949343]
[1748912549672,0.8032,2623.3,2622.9,3.81257289]
[1748912550043,0.8032,2623.3,2623.0,3.81242789]
[1748912550644,1.8647,2623.5,2623.1,3.81219154]
[1748912550841,2.04,2623.8,2622.9,0.755]
[1748912551045,0.8247,2623.7,2623.3,3.81188558]
[1748912551241,0.8247,2623.7,2623.2,3.81207288]
[1748912551447,0.8247,2623.7,2623.4,3.81181974]
[1748912551686,0.8247,2623.7,2623.3,3.81193556]
[1748912551980,0.8247,2623.7,2623.3,3.81196222]
[1748912552579,0.8247,2623.7,2623.4,3.81174978]
[1748912552783,2.04,2623.8,2623.4,3.82122065]
[1748912553285,1.0,2623.8,2623.4,3.82122065]
[1748912554089,1.0,2623.8,2623.3,3.81193043]
[1748912554584,1.0,2623.8,2623.5,0.755]
[1748912554783,1.0,2623.8,2623.5,3.81161093]
[1748912554969,1.0,2623.8,2623.2,0.755]
[1748912555173,1.0,2623.8,2623.3,3.81191028]
[1748912555756,1.0,2623.8,2623.4,3.81176794]
[1748912555960,1.0,2623.8,2623.5,3.81169433]
[1748912556359,1.0,2623.8,2623.6,0.00946814]
[1748912556574,1.0,2623.8,2623.7,3.81141136]
[1748912557371,1.0,2623.8,2623.6,3.81148965]
[1748912557575,1.0,2623.8,2623.2,0.755]
[1748912557779,1.0,2623.8,2623.4,3.81184543]
[1748912558293,0.8163,2623.7,2623.3,3.81190934]
[1748912558448,0.8163,2623.7,2623.3,0.00947659]
[1748912558650,0.8163,2623.7,2623.3,0.00947466]
[1748912558973,0.8163,2623.7,2623.2,3.82159941]
[1748912559288,0.8163,2623.7,2623.2,4.19428831]
[1748912559488,0.8163,2623.7,2623.2,0.38215994]
[1748912559687,0.04764389,2623.6,2622.4,6.52824986]
[1748912559868,4.59341701,2623.4,2622.8,3.81270185]
[1748912560060,4.64106809,2623.4,2622.8,3.81270185]
[1748912560453,0.7815,2623.4,2622.9,0.00948825]
[1748912560652,0.7815,2623.4,2622.7,8.0]
[1748912560851,4.7023,2623.7,2623.0,4.56739719]
[1748912561052,4.7023,2623.7,2623.2,3.81207268]
[1748912561290,4.7023,2623.7,2623.3,0.00947591]
[1748912561586,0.7603,2623.7,2623.3,3.81194236]
[1748912561792,0.7603,2623.7,2623.1,0.00947592]
[1748912562257,0.7603,2623.7,2623.2,3.81209678]
[1748912562453,0.7603,2623.7,2623.2,3.81210698]
[1748912562652,0.7603,2623.7,2623.3,3.81197201]
[1748912563093,0.7603,2623.7,2623.2,3.81206813]
[1748912564189,0.7603,2623.7,2623.0,0.755]
[1748912564374,4.32120675,2623.6,2622.9,3.81248836]
[1748912564759,4.68954924,2623.5,2622.7,8.0]
[1748912564960,0.87784732,2623.5,2622.8,0.00949127]
[1748912565160,0.8302,2623.5,2623.0,3.81236193]
[1748912565796,0.8302,2623.5,2623.1,3.81226273]
[1748912565978,0.8302,2623.5,2623.0,3.82185618]
[1748912566184,0.8302,2623.5,2623.0,0.00948536]
[1748912566373,0.8302,2623.5,2623.1,3.81227574]
[1748912566966,0.8302,2623.5,2623.2,0.36308217]
[1748912567169,1.34533567,2623.5,2623.3,0.36308217]
[1748912567491,1.34533567,2623.5,2623.4,0.36308217]
[1748912567793,5.15703759,2623.5,2623.4,0.36308217]
[1748912567964,1.39298893,2623.5,2623.4,0.36308217]
[1748912568163,4.64190192,2623.5,2623.4,0.36308217]
[1748912569096,4.68955498,2623.5,2623.4,0.36308217]
[1748912569488,3.81189313,2623.4,2622.8,3.81271229]
[1748912569688,3.942,2623.4,2622.9,0.36287429]
[1748912569891,0.8064,2623.2,2623.0,0.36287429]
[1748912570086,0.8064,2623.2,2623.1,0.36287429]
[1748912573323,0.04765235,2623.4,2623.1,0.36285602]
[1748912573464,0.7701,2623.5,2623.2,4.17489538]
[1748912573820,0.7701,2623.5,2623.3,0.36285602]
[1748912573821,4.7121,2623.5,2623.3,0.36285602]
[1748912574114,0.7701,2623.5,2623.4,0.36285602]
[1748912574319,4.7121,2623.5,2623.4,0.36285602]
[1748912574834,4.75974836,2623.5,2623.4,0.36285602]
[1748912575522,4.7121,2623.5,2623.4,0.36285602]
[1748912576423,8.52380192,2623.5,2623.4,0.36285602]
[1748912576714,9.10377675,2623.5,2623.4,0.36285602]
[1748912577043,5.29207483,2623.5,2623.4,0.36285602]
[1748912577163,5.29207483,2623.5,2623.1,0.36306361]
[1748912577364,4.75974859,2623.5,2623.2,0.36306361]
[1748912577710,4.75974859,2623.5,2623.3,0.36306361]
[1748912577873,8.57145051,2623.5,2623.0,3.81241667]
[1748912578072,8.52380192,2623.5,2623.0,3.81241667]
[1748912578575,8.52380192,2623.5,2622.9,3.81250988]
[1748912578776,3.85953066,2623.4,2622.8,3.81262788]
[1748912579275,3.85953066,2623.4,2622.9,3.81256615]
[1748912579473,3.85959402,2623.4,2622.8,3.8126989]
[1748912579702,3.85959402,2623.4,2622.5,3.8130627]
[1748912579703,3.81238843,2623.1,2622.5,3.8130627]
[1748912579935,3.81202834,2623.3,2622.6,7.81300674]
[1748912579936,0.7639,2622.9,2622.6,7.81300674]
[1748912580443,0.7639,2622.9,2622.6,4.0]
[1748912580737,3.81229412,2623.1,2622.6,4.0]
[1748912580738,3.8128646,2622.7,2622.6,4.0]
[1748912580898,4.62443336,2622.7,2622.6,4.0]
[1748912581233,0.7686,2622.3,2621.8,3.814167]
[1748912581400,3.942,2622.2,2622.0,4.0]
[1748912581595,3.98967145,2622.2,2622.0,4.0]
[1748912581938,4.61902336,2622.1,2621.4,3.81461446]
[1748912582094,4.61902336,2622.1,2621.2,0.38904591]
[1748912582095,0.04767715,2622.0,2621.2,0.38904591]
[1748912582299,0.85287715,2622.1,2621.6,3.81432259]
[1748912582604,0.8052,2622.1,2621.6,3.81436919]
[1748912583407,0.8052,2622.1,2621.6,3.8144607]
[1748912583899,0.8052,2622.1,2621.7,3.81422213]
[1748912584637,4.7472,2622.1,2621.6,3.81446444]
[1748912584941,4.7472,2622.1,2621.5,0.00953675]
[1748912585119,4.7472,2622.1,2621.8,3.81414313]
[1748912585645,0.8052,2622.1,2621.6,0.00953674]
[1748912585882,3.81302821,2622.6,2621.6,0.00953674]
[1748912585883,0.7826,2622.6,2621.9,8.0]
[1748912586004,0.7826,2622.8,2622.0,0.76450639]
[1748912586316,0.7826,2622.8,2622.0,0.755]
[1748912586508,0.7826,2622.8,2622.5,3.81314714]
[1748912586709,0.7826,2622.8,2622.4,3.81320875]
[1748912587842,0.7826,2622.8,2622.5,3.81314893]
[1748912588047,0.7826,2622.8,2622.2,3.81359164]
[1748912588243,0.7826,2622.8,2622.5,3.81310344]
[1748912589505,0.8184,2623.1,2622.6,0.00950324]
[1748912589731,0.8184,2623.1,2622.9,3.81249986]
[1748912589931,0.8184,2623.1,2623.0,3.81242851]
[1748912590134,1.8584,2623.3,2623.0,3.81232358]
[1748912590307,1.8584,2623.3,2622.6,8.00949158]
[1748912590308,1.8584,2623.3,2622.9,3.81248651]
[1748912590725,1.8584,2623.3,2623.0,3.81238549]
[1748912591031,1.8584,2623.3,2622.6,8.0]
[1748912591226,1.8584,2623.3,2623.0,3.81240022]
[1748912592764,1.8584,2623.3,2623.1,3.81226146]
[1748912592964,1.8584,2623.3,2622.9,3.8124289]
[1748912593243,1.8584,2623.3,2623.0,3.81234095]
[1748912594035,0.8184,2623.3,2622.9,0.0094861]
[1748912594348,3.942,2623.5,2623.0,3.81242851]
[1748912594508,3.942,2623.5,2623.2,3.81208135]
[1748912595249,0.7956,2623.6,2623.0,0.755]
[1748912595555,1.42090873,2623.6,2622.7,0.755]
[1748912595743,0.7956,2623.6,2623.2,3.81210957]
[1748912595951,0.7956,2623.6,2623.3,3.81199224]
[1748912596266,0.7956,2623.6,2622.8,0.00948071]
[1748912596567,0.7956,2623.6,2623.1,3.81217793]
[1748912596752,1.75916905,2623.6,2623.1,3.81217793]
[1748912597285,5.57073289,2623.6,2623.0,3.81238078]
[1748912597561,0.04764732,2623.5,2622.8,3.81271923]
[1748912597775,1.80681928,2623.6,2622.9,3.81257386]
[1748912598069,0.7956,2623.6,2623.0,0.00948075]
[1748912598236,0.7956,2623.6,2623.4,3.81177158]
[1748912598438,0.7956,2623.6,2623.3,3.8119239]
[1748912598661,0.7956,2623.6,2623.2,3.81204559]
[1748912598966,1.65048711,2623.6,2623.2,3.81204559]
[1748912599336,1.65048711,2623.6,2622.7,0.755]
[1748912599337,0.04764413,2623.5,2622.7,0.755]
[1748912599538,0.8258,2623.3,2622.4,12.697]
[1748912599875,0.8258,2623.3,2622.8,3.81267837]
[1748912600027,0.46376975,2623.2,2622.7,3.82228958]
[1748912600227,0.8258,2623.3,2622.9,3.81249514]
[1748912600767,0.8258,2623.3,2622.8,3.81264936]
[1748912601447,0.8258,2623.3,2622.7,4.20280855]
[1748912602657,0.8258,2623.3,2623.1,3.81218217]